[Event "Titled Tuesday Blitz March 22 Late 2022"]
[White "Le Goff, Ronan"]
[Black "Hambleton, Aman"]
[WhiteFideId "612073"]
[BlackFideId "2606577"]
[WhiteElo "2276"]
[BlackElo "2552"]
[Result "1/2-1/2"]
[Round "08"]
[TimeControl "180+1"]
[Date "2022.03.22"]
[WhiteClock "0:00:06"]
[BlackClock "0:00:05"]

1. d4 {[%clk 0:03:00]}  Nf6 {[%clk 0:02:59]} 2. Nf3 {[%clk 0:02:58]}  e6 {[%clk 0:02:57]} 3. e3 {[%clk 0:02:57]}  c5 {[%clk 0:02:56]} 4. Bd3 {[%clk 0:02:56]}  b6 {[%clk 0:02:56]} 5. O-O {[%clk 0:02:56]}  Bb7 {[%clk 0:02:56]} 6. c4 {[%clk 0:02:56]}  d6 {[%clk 0:02:51]} 7. Nc3 {[%clk 0:02:56]}  a6 {[%clk 0:02:52]} 8. d5 {[%clk 0:02:55]}  exd5 {[%clk 0:02:52]} 9. cxd5 {[%clk 0:02:55]}  b5 {[%clk 0:02:53]} 10. e4 {[%clk 0:02:54]}  Be7 {[%clk 0:02:43]} 11. h3 {[%clk 0:02:53]}  O-O {[%clk 0:02:34]} 12. a4 {[%clk 0:02:53]}  c4 {[%clk 0:02:25]} 13. Bb1 {[%clk 0:02:47]}  b4 {[%clk 0:02:23]} 14. Ne2 {[%clk 0:02:47]}  Nbd7 {[%clk 0:02:23]} 15. Ned4 {[%clk 0:02:25]}  Nc5 {[%clk 0:02:04]} 16. Re1 {[%clk 0:02:21]}  Rc8 {[%clk 0:02:02]} 17. Nf5 {[%clk 0:02:12]}  Nb3 {[%clk 0:02:01]} 18. Ra2 {[%clk 0:01:36]}  Nxc1 {[%clk 0:01:16]} 19. Qxc1 {[%clk 0:01:37]}  a5 {[%clk 0:01:04]} 20. N3d4 {[%clk 0:01:31]}  Nd7 {[%clk 0:00:59]} 21. Qf4 {[%clk 0:00:59]}  Bf6 {[%clk 0:00:37]} 22. Qg3 {[%clk 0:00:47]}  Qb6 {[%clk 0:00:15]} 23. Nb5 {[%clk 0:00:44]}  Be5 {[%clk 0:00:12]} 24. Qh4 {[%clk 0:00:37]}  Kh8 {[%clk 0:00:10]} 25. Kh1 {[%clk 0:00:33]}  g6 {[%clk 0:00:10]} 26. Ne3 {[%clk 0:00:31]}  Ba6 {[%clk 0:00:07]} 27. f4 {[%clk 0:00:31]}  Bf6 {[%clk 0:00:07]} 28. Qg4 {[%clk 0:00:30]}  Rcd8 {[%clk 0:00:05]} 29. Nxc4 {[%clk 0:00:29]}  Qc5 {[%clk 0:00:05]} 30. Ncxd6 {[%clk 0:00:28]}  b3 {[%clk 0:00:03]} 31. Ra1 {[%clk 0:00:27]}  Bxb2 {[%clk 0:00:03]} 32. Bd3 {[%clk 0:00:20]}  Bxa1 {[%clk 0:00:03]} 33. Rxa1 {[%clk 0:00:21]}  Bxb5 {[%clk 0:00:03]} 34. Nxb5 {[%clk 0:00:20]}  b2 {[%clk 0:00:02]} 35. Rb1 {[%clk 0:00:20]}  Nf6 {[%clk 0:00:02]} 36. Qg5 {[%clk 0:00:17]}  Kg7 {[%clk 0:00:02]} 37. Qe5 {[%clk 0:00:17]}  Rfe8 {[%clk 0:00:02]} 38. Qxb2 {[%clk 0:00:16]}  Qe7 {[%clk 0:00:02]} 39. d6 {[%clk 0:00:14]}  Qe6 {[%clk 0:00:03]} 40. e5 {[%clk 0:00:13]}  Nh5 {[%clk 0:00:03]} 41. Qf2 {[%clk 0:00:11]}  Kg8 {[%clk 0:00:02]} 42. Re1 {[%clk 0:00:10]}  Qd5 {[%clk 0:00:02]} 43. Be4 {[%clk 0:00:09]}  Qb3 {[%clk 0:00:02]} 44. Nc7 {[%clk 0:00:07]}  Rf8 {[%clk 0:00:02]} 45. Nd5 {[%clk 0:00:07]}  Ng3+ {[%clk 0:00:02]} 46. Kh2 {[%clk 0:00:07]}  Nxe4 {[%clk 0:00:03]} 47. Rxe4 {[%clk 0:00:07]}  Qxd5 {[%clk 0:00:03]} 48. Qe3 {[%clk 0:00:08]}  Rfe8 {[%clk 0:00:03]} 49. f5 {[%clk 0:00:07]}  Rxd6 {[%clk 0:00:03]} 50. f6 {[%clk 0:00:06]}  Rde6 {[%clk 0:00:03]} 51. Qh6 {[%clk 0:00:06]}  Rxf6 {[%clk 0:00:03]} 52. exf6 {[%clk 0:00:05]}  Qd6+ {[%clk 0:00:03]} 53. Rf4 {[%clk 0:00:06]}  Qf8 {[%clk 0:00:03]} 54. Qg5 {[%clk 0:00:06]}  h6 {[%clk 0:00:03]} 55. Qg3 {[%clk 0:00:05]}  Kh7 {[%clk 0:00:02]} 56. h4 {[%clk 0:00:05]}  Re5 {[%clk 0:00:03]} 57. Rg4 {[%clk 0:00:05]}  Qc5 {[%clk 0:00:02]} 58. Qf3 {[%clk 0:00:03]}  Rf5 {[%clk 0:00:02]} 59. Rf4 {[%clk 0:00:03]}  Qe5 {[%clk 0:00:02]} 60. g3 {[%clk 0:00:03]}  Rxf4 {[%clk 0:00:01]} 61. Qxf4 {[%clk 0:00:04]}  Qxf4 {[%clk 0:00:01]} 62. gxf4 {[%clk 0:00:04]}  g5 {[%clk 0:00:02]} 63. f5 {[%clk 0:00:04]}  gxh4 {[%clk 0:00:01]} 64. Kh3 {[%clk 0:00:05]}  Kg8 {[%clk 0:00:01]} 65. Kxh4 {[%clk 0:00:05]}  Kh8 {[%clk 0:00:02]} 66. Kh5 {[%clk 0:00:05]}  Kh7 {[%clk 0:00:03]} 67. Kh4 {[%clk 0:00:06]}  Kh8 {[%clk 0:00:04]} 68. Kh5 {[%clk 0:00:06]}  Kh7 {[%clk 0:00:04]} 69. Kh4 {[%clk 0:00:06]}  Kh8 {[%clk 0:00:05]} 1/2-1/2


[Site "https://www.chess.com"]

[Event "Titled Tuesday Blitz March 22 Late 2022"]
[White "Lin, Dachey"]
[Black "Babazada, Khazar"]
[WhiteFideId "2029650"]
[BlackFideId "13413554"]
[WhiteElo "2313"]
[BlackElo "2418"]
[Result "0-1"]
[Round "08"]
[TimeControl "180+1"]
[Date "2022.03.22"]
[WhiteClock "0:00:13"]
[BlackClock "0:00:45"]

1. Nc3 {[%clk 0:03:00]}  d5 {[%clk 0:02:59]} 2. e4 {[%clk 0:03:01]}  d4 {[%clk 0:02:58]} 3. Nce2 {[%clk 0:03:02]}  c5 {[%clk 0:02:58]} 4. Nf3 {[%clk 0:03:02]}  Nc6 {[%clk 0:02:58]} 5. c3 {[%clk 0:03:02]}  e5 {[%clk 0:02:55]} 6. Ng3 {[%clk 0:03:03]}  h5 {[%clk 0:02:53]} 7. h4 {[%clk 0:03:02]}  Nf6 {[%clk 0:02:35]} 8. Bb5 {[%clk 0:02:59]}  Bd6 {[%clk 0:02:34]} 9. d3 {[%clk 0:02:57]}  Bg4 {[%clk 0:02:34]} 10. Nf5 {[%clk 0:02:41]}  Bxf5 {[%clk 0:02:33]} 11. exf5 {[%clk 0:02:41]}  Qd7 {[%clk 0:02:31]} 12. Qa4 {[%clk 0:02:38]}  O-O {[%clk 0:02:28]} 13. Bxc6 {[%clk 0:02:37]}  bxc6 {[%clk 0:02:27]} 14. O-O {[%clk 0:02:33]}  Rfc8 {[%clk 0:02:17]} 15. Bg5 {[%clk 0:02:32]}  Qxf5 {[%clk 0:02:16]} 16. Bxf6 {[%clk 0:02:32]}  gxf6 {[%clk 0:02:14]} 17. Qc2 {[%clk 0:02:30]}  c4 {[%clk 0:02:12]} 18. Rad1 {[%clk 0:02:20]}  cxd3 {[%clk 0:02:11]} 19. Qxd3 {[%clk 0:02:20]}  Qxd3 {[%clk 0:02:09]} 20. Rxd3 {[%clk 0:02:21]}  c5 {[%clk 0:02:09]} 21. Nd2 {[%clk 0:02:20]}  Kh7 {[%clk 0:01:32]} 22. Ne4 {[%clk 0:02:19]}  Be7 {[%clk 0:01:31]} 23. Ng3 {[%clk 0:02:19]}  Kg6 {[%clk 0:01:30]} 24. f4 {[%clk 0:01:59]}  c4 {[%clk 0:01:30]} 25. Rdf3 {[%clk 0:01:59]}  exf4 {[%clk 0:01:15]} 26. Rxf4 {[%clk 0:01:59]}  d3 {[%clk 0:01:13]} 27. Nf5 {[%clk 0:01:57]}  Bc5+ {[%clk 0:01:13]} 28. Kh1 {[%clk 0:01:54]}  d2 {[%clk 0:00:56]} 29. Rxc4 {[%clk 0:01:48]}  Re8 {[%clk 0:00:47]} 30. Rxc5 {[%clk 0:00:54]}  Re1 {[%clk 0:00:47]} 31. Ne7+ {[%clk 0:00:54]}  Kg7 {[%clk 0:00:47]} 32. Nf5+ {[%clk 0:00:47]}  Kh7 {[%clk 0:00:46]} 33. Rxe1 {[%clk 0:00:23]}  dxe1=Q+ {[%clk 0:00:47]} 34. Kh2 {[%clk 0:00:24]}  Rg8 {[%clk 0:00:46]} 35. Nd4 {[%clk 0:00:12]}  Qxh4+ {[%clk 0:00:45]} 36. Kg1 {[%clk 0:00:13]}  Qe1+ {[%clk 0:00:44]} 37. Kh2 {[%clk 0:00:13]}  Qg3+ {[%clk 0:00:45]} 0-1


[Site "https://www.chess.com"]

[Event "Titled Tuesday Blitz March 22 Late 2022"]
[White "Maghsoodloo, Parham"]
[Black "Yoo, Christopher Woojin"]
[WhiteFideId "12539929"]
[BlackFideId "30909694"]
[WhiteElo "2630"]
[BlackElo "2105"]
[Result "1-0"]
[Round "08"]
[TimeControl "180+1"]
[Date "2022.03.22"]
[WhiteClock "0:01:04"]
[BlackClock "0:00:02"]

1. d4 {[%clk 0:03:00]}  Nf6 {[%clk 0:03:00]} 2. c4 {[%clk 0:03:01]}  e6 {[%clk 0:03:00]} 3. Nc3 {[%clk 0:03:00]}  Bb4 {[%clk 0:03:00]} 4. e3 {[%clk 0:03:00]}  O-O {[%clk 0:03:00]} 5. Bd2 {[%clk 0:03:01]}  d5 {[%clk 0:02:59]} 6. Nf3 {[%clk 0:03:01]}  b6 {[%clk 0:02:54]} 7. cxd5 {[%clk 0:03:01]}  exd5 {[%clk 0:02:54]} 8. Rc1 {[%clk 0:03:02]}  Bb7 {[%clk 0:02:54]} 9. Bd3 {[%clk 0:03:02]}  Nbd7 {[%clk 0:02:54]} 10. O-O {[%clk 0:03:02]}  Be7 {[%clk 0:02:53]} 11. Ne5 {[%clk 0:03:02]}  c5 {[%clk 0:02:52]} 12. f4 {[%clk 0:03:03]}  Ne4 {[%clk 0:02:45]} 13. Be1 {[%clk 0:02:55]}  Ndf6 {[%clk 0:02:42]} 14. g4 {[%clk 0:02:46]}  Nxc3 {[%clk 0:02:26]} 15. bxc3 {[%clk 0:02:45]}  Ne4 {[%clk 0:02:26]} 16. g5 {[%clk 0:02:41]}  Rc8 {[%clk 0:02:01]} 17. Rc2 {[%clk 0:02:40]}  Qd6 {[%clk 0:01:44]} 18. Rg2 {[%clk 0:02:37]}  Rc7 {[%clk 0:01:24]} 19. Qh5 {[%clk 0:02:36]}  Bc8 {[%clk 0:01:23]} 20. Bxe4 {[%clk 0:02:35]}  dxe4 {[%clk 0:01:22]} 21. f5 {[%clk 0:02:23]}  Bxf5 {[%clk 0:01:15]} 22. Rxf5 {[%clk 0:02:10]}  g6 {[%clk 0:01:15]} 23. Qh6 {[%clk 0:02:10]}  gxf5 {[%clk 0:01:12]} 24. g6 {[%clk 0:02:10]}  fxg6 {[%clk 0:00:55]} 25. Nxg6 {[%clk 0:02:10]}  Bg5 {[%clk 0:00:17]} 26. Rxg5 {[%clk 0:02:02]}  Rg7 {[%clk 0:00:09]} 27. Bg3 {[%clk 0:01:58]}  f4 {[%clk 0:00:08]} 28. Qxg7+ {[%clk 0:01:35]}  Kxg7 {[%clk 0:00:08]} 29. Nxf8+ {[%clk 0:01:34]}  Kxf8 {[%clk 0:00:09]} 30. Bxf4 {[%clk 0:01:34]}  Qf6 {[%clk 0:00:05]} 31. Kg2 {[%clk 0:01:25]}  h6 {[%clk 0:00:05]} 32. Re5 {[%clk 0:01:22]}  Qg6+ {[%clk 0:00:05]} 33. Kh3 {[%clk 0:01:22]}  cxd4 {[%clk 0:00:03]} 34. cxd4 {[%clk 0:01:23]}  h5 {[%clk 0:00:02]} 35. Rg5 {[%clk 0:01:20]}  Qe6+ {[%clk 0:00:03]} 36. Kh4 {[%clk 0:01:20]}  Qxa2 {[%clk 0:00:04]} 37. d5 {[%clk 0:01:21]}  Qa4 {[%clk 0:00:02]} 38. d6 {[%clk 0:01:21]}  Qd7 {[%clk 0:00:02]} 39. Rxh5 {[%clk 0:01:19]}  a5 {[%clk 0:00:02]} 40. Be5 {[%clk 0:01:12]}  Qe6 {[%clk 0:00:02]} 41. d7 {[%clk 0:01:03]}  Qe7+ {[%clk 0:00:02]} 42. Kg3 {[%clk 0:01:04]} 1-0


[Site "https://www.chess.com"]

[Event "Titled Tuesday Blitz March 22 Late 2022"]
[White "Maltsevskaya, Aleksandra"]
[Black "Muetsch, Annmarie"]
[WhiteFideId "24174041"]
[BlackFideId "12971367"]
[WhiteElo "2241"]
[BlackElo "2249"]
[Result "0-1"]
[Round "08"]
[TimeControl "180+1"]
[Date "2022.03.22"]
[WhiteClock "0:00:15"]
[BlackClock "0:00:17"]

1. e4 {[%clk 0:02:50]}  d6 {[%clk 0:02:58]} 2. d4 {[%clk 0:02:50]}  Nf6 {[%clk 0:02:57]} 3. Nc3 {[%clk 0:02:50]}  e5 {[%clk 0:02:57]} 4. dxe5 {[%clk 0:02:50]}  dxe5 {[%clk 0:02:58]} 5. Qxd8+ {[%clk 0:02:50]}  Kxd8 {[%clk 0:02:58]} 6. Nf3 {[%clk 0:02:50]}  Bd6 {[%clk 0:02:54]} 7. Bc4 {[%clk 0:02:50]}  Ke7 {[%clk 0:02:53]} 8. Bg5 {[%clk 0:02:50]}  c6 {[%clk 0:02:51]} 9. O-O-O {[%clk 0:02:51]}  Bc7 {[%clk 0:02:50]} 10. h3 {[%clk 0:02:48]}  Nd7 {[%clk 0:02:49]} 11. g4 {[%clk 0:02:46]}  h6 {[%clk 0:02:46]} 12. Be3 {[%clk 0:02:46]}  b5 {[%clk 0:02:37]} 13. Bb3 {[%clk 0:02:42]}  a5 {[%clk 0:02:37]} 14. a4 {[%clk 0:02:42]}  b4 {[%clk 0:02:36]} 15. Ne2 {[%clk 0:02:40]}  Nxe4 {[%clk 0:02:34]} 16. g5 {[%clk 0:02:40]}  Ndc5 {[%clk 0:02:27]} 17. gxh6 {[%clk 0:02:34]}  Nxb3+ {[%clk 0:02:21]} 18. cxb3 {[%clk 0:02:35]}  gxh6 {[%clk 0:02:20]} 19. Ng3 {[%clk 0:02:32]}  Nxg3 {[%clk 0:02:17]} 20. Bc5+ {[%clk 0:02:32]}  Ke8 {[%clk 0:02:08]} 21. fxg3 {[%clk 0:02:33]}  Be6 {[%clk 0:02:02]} 22. Rhe1 {[%clk 0:02:31]}  f6 {[%clk 0:01:59]} 23. g4 {[%clk 0:02:31]}  Kf7 {[%clk 0:01:55]} 24. Rf1 {[%clk 0:02:30]}  Rad8 {[%clk 0:01:23]} 25. Be3 {[%clk 0:02:06]}  Bxb3 {[%clk 0:01:17]} 26. Rxd8 {[%clk 0:02:04]}  Rxd8 {[%clk 0:01:11]} 27. Bxh6 {[%clk 0:02:03]}  Rd3 {[%clk 0:01:05]} 28. Nd2 {[%clk 0:01:41]}  Rxh3 {[%clk 0:00:46]} 29. g5 {[%clk 0:01:40]}  Bd8 {[%clk 0:00:36]} 30. Ne4 {[%clk 0:01:31]}  Kg6 {[%clk 0:00:29]} 31. gxf6 {[%clk 0:00:25]}  Rxh6 {[%clk 0:00:21]} 32. f7 {[%clk 0:00:16]}  Be7 {[%clk 0:00:20]} 33. f8=Q {[%clk 0:00:17]}  Bxf8 {[%clk 0:00:21]} 34. Rxf8 {[%clk 0:00:17]}  Rh1+ {[%clk 0:00:20]} 35. Kd2 {[%clk 0:00:18]}  Rh2+ {[%clk 0:00:18]} 36. Kc1 {[%clk 0:00:16]}  Bxa4 {[%clk 0:00:18]} 37. Rf5 {[%clk 0:00:15]}  Kxf5 {[%clk 0:00:17]} 0-1


[Site "https://www.chess.com"]

[Event "Titled Tuesday Blitz March 22 Late 2022"]
[White "Mangialardo, Tiago Carvalho"]
[Black "Celestino, Rafael Teixeira"]
[WhiteFideId "2130718"]
[BlackFideId "2108925"]
[WhiteElo "2087"]
[BlackElo "2303"]
[Result "0-1"]
[Round "08"]
[TimeControl "180+1"]
[Date "2022.03.22"]
[WhiteClock "0:00:01"]
[BlackClock "0:00:45"]

1. e4 {[%clk 0:03:00]}  c5 {[%clk 0:02:58]} 2. Nf3 {[%clk 0:03:00]}  d6 {[%clk 0:02:57]} 3. d4 {[%clk 0:03:01]}  cxd4 {[%clk 0:02:55]} 4. Nxd4 {[%clk 0:03:01]}  Nf6 {[%clk 0:02:55]} 5. Nc3 {[%clk 0:03:02]}  a6 {[%clk 0:02:48]} 6. Be3 {[%clk 0:03:01]}  Nc6 {[%clk 0:02:43]} 7. Be2 {[%clk 0:03:01]}  g6 {[%clk 0:02:43]} 8. O-O {[%clk 0:02:59]}  Bg7 {[%clk 0:02:44]} 9. Rb1 {[%clk 0:02:50]}  O-O {[%clk 0:02:42]} 10. a3 {[%clk 0:02:50]}  e5 {[%clk 0:02:39]} 11. Nf3 {[%clk 0:02:48]}  Be6 {[%clk 0:02:34]} 12. Qd2 {[%clk 0:02:46]}  d5 {[%clk 0:02:33]} 13. exd5 {[%clk 0:02:43]}  Nxd5 {[%clk 0:02:34]} 14. Nxd5 {[%clk 0:02:40]}  Qxd5 {[%clk 0:02:35]} 15. Rfd1 {[%clk 0:02:28]}  Rfd8 {[%clk 0:02:28]} 16. Qxd5 {[%clk 0:02:17]}  Bxd5 {[%clk 0:02:24]} 17. c4 {[%clk 0:02:13]}  Be4 {[%clk 0:02:17]} 18. Rbc1 {[%clk 0:02:08]}  a5 {[%clk 0:02:06]} 19. Ne1 {[%clk 0:02:07]}  a4 {[%clk 0:02:04]} 20. f3 {[%clk 0:01:17]}  Bf5 {[%clk 0:02:00]} 21. g4 {[%clk 0:01:16]}  Be6 {[%clk 0:02:00]} 22. Rc2 {[%clk 0:01:00]}  f5 {[%clk 0:01:31]} 23. h3 {[%clk 0:00:50]}  Kf7 {[%clk 0:01:28]} 24. Nd3 {[%clk 0:00:32]}  Na5 {[%clk 0:01:13]} 25. Bb6 {[%clk 0:00:14]}  Nxc4 {[%clk 0:01:00]} 26. Bxd8 {[%clk 0:00:06]}  Ne3 {[%clk 0:00:59]} 27. Rc7+ {[%clk 0:00:01]}  Kg8 {[%clk 0:00:56]} 28. Be7 {[%clk 0:00:01]}  Nxd1 {[%clk 0:00:53]} 29. Bxd1 {[%clk 0:00:02]}  e4 {[%clk 0:00:50]} 30. Nc5 {[%clk 0:00:02]}  Be5 {[%clk 0:00:46]} 31. Rxb7 {[%clk 0:00:01]}  Bd5 {[%clk 0:00:46]} 32. Rb6 {[%clk 0:00:01]}  Bd4+ {[%clk 0:00:45]} 0-1


[Site "https://www.chess.com"]

[Event "Titled Tuesday Blitz March 22 Late 2022"]
[White "Mirza, Diana"]
[Black "Zhou, Qiyu"]
[WhiteFideId "2503999"]
[BlackFideId "505161"]
[WhiteElo "1813"]
[BlackElo "1925"]
[Result "0-1"]
[Round "08"]
[TimeControl "180+1"]
[Date "2022.03.22"]
[WhiteClock "0:00:01"]
[BlackClock "0:00:24"]

1. d4 {[%clk 0:03:00]}  Nf6 {[%clk 0:02:59]} 2. Nf3 {[%clk 0:03:00]}  d5 {[%clk 0:02:59]} 3. e3 {[%clk 0:03:00]}  e6 {[%clk 0:03:00]} 4. Bd3 {[%clk 0:03:00]}  c5 {[%clk 0:03:00]} 5. b3 {[%clk 0:03:00]}  Nc6 {[%clk 0:02:59]} 6. Bb2 {[%clk 0:03:00]}  Be7 {[%clk 0:02:57]} 7. a3 {[%clk 0:02:59]}  O-O {[%clk 0:02:55]} 8. Nbd2 {[%clk 0:02:56]}  cxd4 {[%clk 0:02:38]} 9. exd4 {[%clk 0:02:54]}  Nh5 {[%clk 0:02:34]} 10. g3 {[%clk 0:01:43]}  Nf6 {[%clk 0:02:20]} 11. Ne5 {[%clk 0:01:36]}  Qc7 {[%clk 0:02:17]} 12. f4 {[%clk 0:01:36]}  Nd7 {[%clk 0:02:00]} 13. Qh5 {[%clk 0:01:28]}  f5 {[%clk 0:01:54]} 14. O-O {[%clk 0:01:21]}  Nf6 {[%clk 0:01:42]} 15. Qh3 {[%clk 0:01:13]}  Nxe5 {[%clk 0:01:36]} 16. dxe5 {[%clk 0:01:08]}  Bc5+ {[%clk 0:01:31]} 17. Kh1 {[%clk 0:01:06]}  Ng4 {[%clk 0:01:30]} 18. Qh4 {[%clk 0:00:22]}  b6 {[%clk 0:01:17]} 19. b4 {[%clk 0:00:19]}  Be3 {[%clk 0:01:11]} 20. Nf3 {[%clk 0:00:19]}  Nf2+ {[%clk 0:00:53]} 21. Kg2 {[%clk 0:00:18]}  Nxd3 {[%clk 0:00:50]} 22. cxd3 {[%clk 0:00:19]}  Qc2+ {[%clk 0:00:48]} 23. Kh3 {[%clk 0:00:15]}  Qxb2 {[%clk 0:00:46]} 24. Rab1 {[%clk 0:00:13]}  Qxa3 {[%clk 0:00:40]} 25. Rfe1 {[%clk 0:00:10]}  d4 {[%clk 0:00:31]} 26. Ra1 {[%clk 0:00:05]}  Qxd3 {[%clk 0:00:30]} 27. Rac1 {[%clk 0:00:03]}  Bd7 {[%clk 0:00:26]} 28. Rc7 {[%clk 0:00:01]}  Rad8 {[%clk 0:00:25]} 29. Ng5 {[%clk 0:00:01]}  h6 {[%clk 0:00:24]} 0-1


[Site "https://www.chess.com"]

[Event "Titled Tuesday Blitz March 22 Late 2022"]
[White "P., Komal Kishore"]
[Black "Avazkhonov, Alikhon"]
[WhiteFideId "5016703"]
[BlackFideId "14208504"]
[WhiteElo "2085"]
[BlackElo "1739"]
[Result "0-1"]
[Round "08"]
[TimeControl "180+1"]
[Date "2022.03.22"]
[WhiteClock "0:00:03"]
[BlackClock "0:00:08"]

1. e4 {[%clk 0:03:00]}  c5 {[%clk 0:02:55]} 2. Nf3 {[%clk 0:03:00]}  d6 {[%clk 0:02:55]} 3. Bb5+ {[%clk 0:03:00]}  Nd7 {[%clk 0:02:54]} 4. O-O {[%clk 0:02:59]}  a6 {[%clk 0:02:52]} 5. Be2 {[%clk 0:02:58]}  Ngf6 {[%clk 0:02:52]} 6. d3 {[%clk 0:02:57]}  e5 {[%clk 0:02:50]} 7. c3 {[%clk 0:02:54]}  Be7 {[%clk 0:02:50]} 8. Qc2 {[%clk 0:02:46]}  O-O {[%clk 0:02:50]} 9. Nbd2 {[%clk 0:02:40]}  b5 {[%clk 0:02:50]} 10. a4 {[%clk 0:02:39]}  Bb7 {[%clk 0:02:51]} 11. d4 {[%clk 0:02:37]}  c4 {[%clk 0:02:33]} 12. Re1 {[%clk 0:02:29]}  Qc7 {[%clk 0:02:28]} 13. Bf1 {[%clk 0:02:01]}  Rfe8 {[%clk 0:02:27]} 14. Nb1 {[%clk 0:01:27]}  Bf8 {[%clk 0:02:21]} 15. Bg5 {[%clk 0:01:25]}  exd4 {[%clk 0:02:09]} 16. Nxd4 {[%clk 0:01:15]}  Nxe4 {[%clk 0:02:04]} 17. Bf4 {[%clk 0:01:08]}  Qb6 {[%clk 0:01:56]} 18. axb5 {[%clk 0:01:02]}  axb5 {[%clk 0:01:57]} 19. Rxa8 {[%clk 0:01:01]}  Bxa8 {[%clk 0:01:56]} 20. Na3 {[%clk 0:00:59]}  Ndf6 {[%clk 0:01:07]} 21. f3 {[%clk 0:00:52]}  Nc5 {[%clk 0:00:27]} 22. Rxe8 {[%clk 0:00:49]}  Nxe8 {[%clk 0:00:28]} 23. Naxb5 {[%clk 0:00:45]}  d5 {[%clk 0:00:27]} 24. Be3 {[%clk 0:00:44]}  Ne6 {[%clk 0:00:19]} 25. b4 {[%clk 0:00:32]}  cxb3 {[%clk 0:00:12]} 26. Qxb3 {[%clk 0:00:31]}  Bc5 {[%clk 0:00:12]} 27. Kh1 {[%clk 0:00:17]}  Nd6 {[%clk 0:00:12]} 28. Nxd6 {[%clk 0:00:14]}  Qxb3 {[%clk 0:00:13]} 29. Nxb3 {[%clk 0:00:13]}  Bxe3 {[%clk 0:00:13]} 30. Nf5 {[%clk 0:00:10]}  Ba7 {[%clk 0:00:10]} 31. c4 {[%clk 0:00:09]}  d4 {[%clk 0:00:09]} 32. Bd3 {[%clk 0:00:09]}  g6 {[%clk 0:00:09]} 33. Ng3 {[%clk 0:00:06]}  Nf4 {[%clk 0:00:09]} 34. Nc1 {[%clk 0:00:03]}  Nxd3 {[%clk 0:00:07]} 35. Nxd3 {[%clk 0:00:03]}  Bb7 {[%clk 0:00:08]} 0-1


[Site "https://www.chess.com"]

[Event "Titled Tuesday Blitz March 22 Late 2022"]
[White "Papasimakopoulos, Alexandros"]
[Black "Tregubov, Pavel V."]
[WhiteFideId "4244125"]
[BlackFideId "4115341"]
[WhiteElo "2340"]
[BlackElo "2341"]
[Result "1-0"]
[Round "08"]
[TimeControl "180+1"]
[Date "2022.03.22"]
[WhiteClock "0:00:16"]
[BlackClock "0:00:34"]

1. d4 {[%clk 0:02:53]}  Nf6 {[%clk 0:02:59]} 2. c4 {[%clk 0:02:52]}  e6 {[%clk 0:03:00]} 3. Nc3 {[%clk 0:02:51]}  Bb4 {[%clk 0:03:00]} 4. Qc2 {[%clk 0:02:50]}  c5 {[%clk 0:02:59]} 5. dxc5 {[%clk 0:02:51]}  O-O {[%clk 0:03:00]} 6. Nf3 {[%clk 0:02:50]}  Na6 {[%clk 0:02:59]} 7. a3 {[%clk 0:02:48]}  Bxc3+ {[%clk 0:02:58]} 8. Qxc3 {[%clk 0:02:49]}  Nxc5 {[%clk 0:02:59]} 9. Bg5 {[%clk 0:02:49]}  Nce4 {[%clk 0:02:58]} 10. Bxf6 {[%clk 0:02:50]}  Qxf6 {[%clk 0:02:57]} 11. Qxf6 {[%clk 0:02:49]}  Nxf6 {[%clk 0:02:52]} 12. e3 {[%clk 0:02:49]}  d5 {[%clk 0:02:50]} 13. cxd5 {[%clk 0:02:47]}  Nxd5 {[%clk 0:02:50]} 14. Bc4 {[%clk 0:02:43]}  Nb6 {[%clk 0:02:50]} 15. Bb3 {[%clk 0:02:42]}  Bd7 {[%clk 0:02:50]} 16. Ne5 {[%clk 0:02:35]}  Ba4 {[%clk 0:02:49]} 17. Bxa4 {[%clk 0:02:29]}  Nxa4 {[%clk 0:02:49]} 18. O-O-O {[%clk 0:02:30]}  Rac8+ {[%clk 0:02:47]} 19. Kb1 {[%clk 0:02:30]}  f6 {[%clk 0:02:42]} 20. Nf3 {[%clk 0:01:44]}  e5 {[%clk 0:02:33]} 21. Nd2 {[%clk 0:01:42]}  Rc6 {[%clk 0:02:19]} 22. Ne4 {[%clk 0:01:38]}  Rfc8 {[%clk 0:02:18]} 23. Rd2 {[%clk 0:01:37]}  Nc5 {[%clk 0:02:12]} 24. Nxc5 {[%clk 0:01:35]}  Rxc5 {[%clk 0:02:13]} 25. Rhd1 {[%clk 0:01:35]}  R8c7 {[%clk 0:02:05]} 26. Rd7 {[%clk 0:01:34]}  h5 {[%clk 0:02:00]} 27. h4 {[%clk 0:01:21]}  Kh7 {[%clk 0:01:59]} 28. e4 {[%clk 0:01:08]}  Kg6 {[%clk 0:01:57]} 29. b4 {[%clk 0:01:05]}  Rc1+ {[%clk 0:01:48]} 30. Rxc1 {[%clk 0:00:53]}  Rxd7 {[%clk 0:01:48]} 31. f3 {[%clk 0:00:47]}  Kf7 {[%clk 0:01:40]} 32. Kb2 {[%clk 0:00:38]}  g5 {[%clk 0:01:25]} 33. hxg5 {[%clk 0:00:27]}  fxg5 {[%clk 0:01:25]} 34. Rc5 {[%clk 0:00:27]}  Rd2+ {[%clk 0:01:20]} 35. Rc2 {[%clk 0:00:18]}  Rxc2+ {[%clk 0:01:12]} 36. Kxc2 {[%clk 0:00:19]}  b5 {[%clk 0:01:12]} 37. Kd3 {[%clk 0:00:19]}  Kf6 {[%clk 0:01:12]} 38. Ke3 {[%clk 0:00:19]}  Ke6 {[%clk 0:01:04]} 39. Kf2 {[%clk 0:00:17]}  Kf6 {[%clk 0:01:01]} 40. Kg1 {[%clk 0:00:17]}  h4 {[%clk 0:00:42]} 41. Kh2 {[%clk 0:00:17]}  g4 {[%clk 0:00:43]} 42. fxg4 {[%clk 0:00:14]}  Kg5 {[%clk 0:00:43]} 43. Kh3 {[%clk 0:00:14]}  a6 {[%clk 0:00:39]} 44. g3 {[%clk 0:00:15]}  hxg3 {[%clk 0:00:39]} 45. Kxg3 {[%clk 0:00:15]}  Kg6 {[%clk 0:00:34]} 46. Kh4 {[%clk 0:00:16]} 1-0


[Site "https://www.chess.com"]